bitfinex-derivatives/quotes_ETHF0:USTF0_20240923
["timestamp","ask_amount","ask_price","bid_price","bid_amount"]
[1727130733551,1.85691152,2654.0,2653.8,3.48641343]
[1727130733734,0.98509781,2653.9,2653.8,3.48642343]
[1727130733953,1.41079781,2653.9,2653.8,3.48642343]
[1727130734135,1.41079781,2653.9,2653.8,7.25442343]
[1727130734340,0.98509781,2653.9,2653.8,7.25442343]
[1727130737142,1.36187781,2653.9,2653.8,7.25442343]
[1727130737845,1.81727781,2653.9,2653.8,7.25442343]
[1727130738246,1.44049781,2653.9,2653.8,6.26659]
[1727130738636,1.44049781,2653.9,2653.8,7.25442343]
[1727130739347,1.44049781,2653.9,2653.8,3.48642343]
[1727130739546,1.81727781,2653.9,2653.8,1.6728]
[1727130739740,1.81727781,2653.9,2653.7,1.22]
[1727130739741,3.21542152,2653.9,2653.7,1.22]
[1727130740049,0.98509826,2653.8,2653.7,2.58464343]
[1727130740946,2.72037826,2653.9,2653.8,0.37679]
[1727130741150,2.72037826,2653.9,2653.8,1.59679]
[1727130741643,2.72037826,2653.9,2653.8,1.22]
[1727130742046,3.21542152,2653.9,2653.8,1.22]
[1727130743142,3.21542152,2653.9,2653.8,1.59679]
[1727130743350,3.21542152,2653.9,2653.8,1.22]
[1727130743654,3.21542152,2653.9,2653.8,1.59679]
[1727130743846,1.73528,2653.9,2653.8,1.59679]
[1727130744052,3.21542152,2653.9,2653.8,1.59679]
[1727130744555,1.73528,2653.9,2653.8,1.59679]
[1727130745346,2.72161975,2653.9,2653.8,1.59679]
[1727130746151,1.73528,2653.9,2653.8,1.59679]
[1727130746353,1.73528,2653.9,2653.8,1.22]
[1727130746548,3.21542152,2653.9,2653.8,1.22]
[1727130746753,0.37679,2653.8,2653.7,1.22]
[1727130746948,0.37679,2653.8,2653.7,1.59681]
[1727130747350,1.36326449,2653.8,2653.7,1.59681]
[1727130747854,1.36326449,2653.8,2653.7,7.29467343]
[1727130747855,0.98647449,2653.8,2653.7,7.29467343]
[1727130748051,1.48014152,2654.0,2653.7,8.54148781]
[1727130748052,0.98647449,2654.0,2653.7,8.54148781]
[1727130748251,0.98647449,2654.0,2653.9,2.58429753]
[1727130748653,0.98647449,2654.0,2653.9,3.00969753]
[1727130750044,0.98647449,2654.0,2653.9,2.02218]
[1727130751452,0.98647449,2654.1,2654.0,0.37677]
[1727130751750,0.98647449,2654.1,2654.0,2.06107]
[1727130752255,0.98647449,2654.1,2654.0,2.51167]
[1727130754156,1.36322449,2654.1,2654.0,2.51167]
[1727130754848,1.36322449,2654.1,2653.6,0.98751753]
[1727130754849,0.37681,2653.7,2653.6,0.98751753]
[1727130755049,6.12231482,2653.7,2653.2,0.98751753]
[1727130755253,6.12231482,2653.7,2653.1,1.48178894]
[1727130755254,0.37688,2653.2,2653.1,0.98751753]
[1727130755847,0.37691,2653.0,2652.9,0.98751753]
[1727130756077,0.37692,2652.9,2652.8,2.20751753]
[1727130756560,0.37692,2652.9,2652.8,0.98751753]
[1727130756753,0.37695,2652.7,2652.6,0.98751753]
[1727130757055,0.37695,2652.8,2652.6,0.37696]
[1727130757251,0.37695,2652.8,2652.5,4.99238753]
[1727130757459,0.37695,2652.8,2652.7,1.22]
[1727130758158,1.79034302,2653.0,2652.7,1.59694]
[1727130758360,1.79034302,2653.0,2652.8,3.02693]
[1727130758657,1.41343302,2653.0,2652.9,0.37692]
[1727130758849,0.80441,2653.0,2652.8,3.02693]
[1727130759861,0.80441,2653.0,2652.8,2.65]
[1727130761155,0.4275,2653.0,2652.8,2.65]
[1727130761350,0.37692,2652.9,2652.8,2.65]
[1727130763066,0.80442,2653.0,2652.8,3.02694]
[1727130763573,0.37692,2652.9,2652.8,2.65]
[1727130763951,0.37694,2652.8,2652.6,3.02696]
[1727130764851,0.37694,2652.8,2652.7,0.37695]
[1727130765257,0.37695,2652.7,2652.6,2.65]
[1727130765654,0.37694,2652.8,2652.6,3.02696]
[1727130766476,0.37694,2652.8,2652.7,0.37695]
[1727130768062,0.37693,2652.9,2652.7,0.37695]
[1727130768459,0.37695,2652.7,2652.6,2.65]
[1727130772868,0.37695,2652.7,2652.5,0.79708]
[1727130772869,0.37696,2652.6,2652.5,0.4201]
[1727130773162,0.37698,2652.5,2652.4,3.0802]
[1727130780373,0.37698,2652.5,2652.4,1.22]
[1727130780564,0.37699,2652.4,2652.3,1.22]
[1727130781464,0.37698,2652.5,2652.3,1.597]
[1727130781668,0.37698,2652.5,2652.4,1.22]
[1727130785564,0.82647,2652.6,2652.4,1.59699]
[1727130786271,0.37698,2652.5,2652.4,1.59699]
[1727130787571,0.4535,2652.8,2652.4,1.22]
[1727130787765,0.83044,2652.8,2652.7,1.22]
[1727130788174,0.83044,2652.8,2652.7,2.0834]
[1727130788578,0.83044,2652.8,2652.7,2.46035]
[1727130788772,0.83044,2652.8,2652.7,2.0834]
[1727130789670,0.37694,2652.8,2652.7,2.46035]
[1727130789976,0.37694,2652.8,2652.7,2.0834]
[1727130790280,0.37694,2652.8,2652.7,2.46035]
[1727130790685,0.37694,2652.8,2652.7,2.0834]
[1727130790979,0.37693,2652.9,2652.7,2.46034]
[1727130792474,0.37693,2652.9,2652.7,2.0834]
[1727130792781,0.37694,2652.8,2652.7,2.46034]
[1727130792983,0.8417,2653.0,2652.7,2.46034]
[1727130793479,0.37693,2652.9,2652.7,2.46034]
[1727130794665,0.37694,2652.8,2652.7,2.46034]
[1727130795581,4.57306,2653.1,2652.7,2.0834]
[1727130795881,0.37694,2652.8,2652.7,2.46035]
[1727130800191,1.36287302,2652.8,2652.7,2.46035]
[1727130801087,1.85606129,2652.8,2652.7,3.44786753]
[1727130802682,1.47912129,2652.8,2652.7,3.44786753]
[1727130802886,1.85605129,2652.9,2652.8,0.37694]
[1727130803180,0.37693,2652.9,2652.8,0.98844965]
[1727130803379,1.85605129,2652.9,2652.8,0.98844965]
[1727130804968,0.37694,2652.8,2652.7,3.07184965]
[1727130805172,1.85606129,2652.8,2652.7,1.85184965]
[1727130806574,1.85606129,2652.8,2652.7,2.22879965]
[1727130807184,1.85606129,2652.8,2652.7,1.85184965]
[1727130808597,1.85606129,2652.8,2652.7,2.22879965]
[1727130808979,1.85606129,2652.8,2652.7,1.85184965]
[1727130809482,1.85606129,2652.8,2652.7,0.98844965]
[1727130809882,2.79841129,2652.8,2652.7,0.98844965]
[1727130810086,2.79841129,2652.8,2652.5,1.91098894]
[1727130810087,1.31938,2652.6,2652.5,0.98844965]
[1727130810276,1.31938,2652.6,2652.4,0.98844965]
[1727130810277,0.37698,2652.5,2652.4,0.98844965]
[1727130810482,2.71103192,2652.5,2652.4,0.98844965]
[1727130811491,0.37699,2652.4,2652.3,5.41624965]
[1727130811682,1.3639596,2652.4,2652.3,7.0383225]
[1727130811878,1.3639596,2652.4,2652.3,5.55653356]
[1727130814179,1.3639596,2652.4,2652.3,7.0383225]
[1727130814887,1.3639596,2652.4,2652.3,6.54514855]
[1727130815084,1.3639596,2652.4,2652.3,5.55653356]
[1727130815285,1.3639596,2652.4,2652.3,6.54513747]
[1727130815495,1.3639596,2652.4,2652.3,5.41640391]
[1727130816996,1.3639596,2652.4,2652.3,2.20860391]
[1727130817495,0.37699,2652.4,2652.3,2.20860391]
[1727130817696,1.85764192,2652.4,2652.3,1.22]
[1727130817895,0.37699,2652.4,2652.3,1.22]
[1727130818094,1.85764192,2652.4,2652.3,1.22]
[1727130818289,0.37699,2652.4,2652.3,1.22]
[1727130819690,1.36238295,2652.4,2652.3,1.22]
[1727130820587,0.37699,2652.4,2652.3,1.22]
[1727130820993,3.58479,2652.4,2652.3,1.22]
[1727130821794,0.37699,2652.4,2652.3,1.22]
[1727130822093,5.06544192,2652.4,2652.3,1.22]
[1727130822597,1.85764192,2652.4,2652.3,1.22]
[1727130822804,1.85764192,2652.4,2652.2,0.4415]
[1727130822805,0.37701,2652.3,2652.2,0.4415]
[1727130823000,1.80513228,2652.3,2652.2,0.4415]
[1727130823201,1.80510758,2652.3,2652.2,0.4415]
[1727130824494,0.82001,2652.3,2652.2,0.4415]
[1727130824701,1.80495421,2652.3,2652.2,0.4415]
[1727130828107,0.82001,2652.3,2652.2,0.4415]
[1727130828297,1.80495421,2652.3,2652.2,0.4415]
[1727130830602,0.82001,2652.3,2652.2,0.4415]
[1727130831094,1.80495421,2652.3,2652.2,0.4415]
[1727130831891,0.82001,2652.3,2652.2,0.4415]
[1727130832712,1.80495421,2652.3,2652.2,0.4415]
[1727130835107,0.82001,2652.3,2652.2,0.4415]
[1727130838204,1.80495421,2652.3,2652.2,0.4415]
[1727130838506,0.82001,2652.3,2652.2,0.4415]
[1727130838801,6.51788421,2652.3,2652.2,0.4415]
[1727130839008,0.37704,2652.1,2652.0,0.8967]
[1727130839209,1.31964,2652.1,2652.0,0.4322]
[1727130839405,1.31973,2651.9,2651.8,0.4322]
[1727130839599,2.3039056,2651.9,2651.8,0.4322]
[1727130840011,2.7358247,2651.9,2651.8,0.4322]
[1727130840708,1.7931547,2651.9,2651.8,0.4322]
[1727130842008,0.80906,2651.9,2651.8,0.4322]
[1727130843515,1.7931547,2651.9,2651.8,0.4322]
[1727130844203,0.80906,2651.9,2651.8,0.4322]
[1727130844408,1.7931547,2651.9,2651.8,0.4322]
[1727130845810,0.80906,2651.9,2651.8,0.4322]
[1727130846409,4.01686,2651.9,2651.8,0.4322]
[1727130847210,0.37711,2651.6,2651.5,0.9077]
[1727130847410,4.4278,2651.6,2651.2,0.98860391]
[1727130847627,0.94292,2651.2,2650.9,1.83870391]
[1727130847910,0.94292,2651.2,2650.5,0.98860391]
[1727130847911,0.37723,2650.7,2650.5,0.98860391]
[1727130848114,0.37726,2650.5,2650.4,0.8582]
[1727130848616,0.37724,2650.7,2650.4,2.0782]
[1727130848808,0.37724,2650.7,2650.6,1.22]
[1727130849205,0.37723,2650.8,2650.6,1.22]
[1727130850416,0.37723,2650.8,2650.5,3.02726]
[1727130850816,0.37722,2650.8,2650.5,3.02726]
[1727130851420,0.82892,2650.9,2650.5,3.02726]
[1727130851716,0.37722,2650.8,2650.5,3.02726]
[1727130851910,0.82891,2650.9,2650.5,3.02726]
[1727130852414,0.82891,2650.9,2650.6,0.37725]
[1727130852609,0.37721,2650.9,2650.6,0.37725]
[1727130852811,0.37721,2650.9,2650.7,0.4394]
[1727130853321,0.37721,2650.9,2650.8,0.443]
[1727130854018,3.2078,2651.0,2650.9,0.37721]
[1727130854215,3.2078,2651.0,2650.9,7.22861]
[1727130854410,4.082,2651.2,2650.9,6.8514]
[1727130854617,0.4608,2651.4,2650.9,3.0794]
[1727130854618,0.37714,2651.4,2650.9,3.0794]
[1727130854817,3.6407,2651.5,2650.9,3.0794]
[1727130855113,3.6407,2651.5,2651.1,0.37717]
[1727130855114,0.37714,2651.4,2651.1,0.37717]
[1727130855321,0.37714,2651.4,2651.2,0.4568]
[1727130855522,0.37714,2651.4,2651.2,0.9076]
[1727130856222,0.37715,2651.3,2651.2,0.9076]
[1727130857424,0.37714,2651.4,2651.2,1.28476]
[1727130857820,0.37714,2651.4,2651.2,1.28475]
[1727130858024,3.58493,2651.5,2651.3,0.37714]
[1727130858210,3.2078,2651.5,2651.4,0.80254]
[1727130858413,3.2078,2651.5,2651.4,0.4254]
[1727130858622,3.2078,2651.5,2651.4,0.80254]
[1727130860824,3.58492,2651.5,2651.4,0.80254]
[1727130861223,3.2078,2651.5,2651.4,0.80254]
[1727130863026,3.58488,2651.8,2651.6,0.3771]
[1727130863529,3.58488,2651.8,2651.7,0.4395]
[1727130867927,0.3771,2651.7,2651.5,0.37711]
[1727130868128,0.3771,2651.7,2651.5,0.80281]
[1727130870229,0.3771,2651.7,2651.6,0.81751]
[1727130870428,0.37709,2651.8,2651.6,0.81751]
[1727130870728,0.37708,2651.9,2651.7,1.59709]
[1727130870932,0.37708,2651.9,2651.8,0.4535]
[1727130871927,0.8937,2652.0,2651.8,0.37707]
[1727130872130,0.37705,2652.0,2651.9,0.37706]
[1727130872328,0.37704,2652.1,2651.9,0.79746]
[1727130872832,0.37705,2652.0,2651.9,0.4204]
[1727130873320,0.37705,2652.0,2651.9,0.79746]
[1727130873926,0.37704,2652.1,2651.9,0.79746]
[1727130874728,0.37705,2652.0,2651.9,0.4204]
[1727130874930,0.37705,2652.1,2651.9,0.79746]
[1727130877429,3.6427,2652.2,2652.0,0.37705]
[1727130877625,0.37704,2652.1,2651.9,0.79746]
[1727130878726,0.37704,2652.1,2652.0,0.37705]
[1727130879328,0.37704,2652.1,2651.9,0.79745]
[1727130879835,4.01973,2652.2,2651.9,0.4204]
[1727130880038,4.01973,2652.2,2652.0,0.79934]
[1727130880425,0.37704,2652.1,2652.0,0.79934]
[1727130880626,0.37704,2652.1,2651.9,0.4204]
[1727130880627,0.37705,2652.0,2651.9,0.79746]
[1727130881131,0.37705,2652.1,2651.9,0.79746]
[1727130883138,0.37705,2652.1,2652.0,0.37705]
[1727130883437,4.6267947,2652.2,2652.1,0.37704]
[1727130883627,1.4310947,2652.3,2652.0,1.6449]
[1727130883929,1.48065192,2652.4,2652.0,1.6449]
[1727130883930,1.4403947,2652.4,2652.2,1.59702]
[1727130884137,1.8173847,2652.4,2652.3,0.4215]
[1727130885635,0.37702,2652.3,2652.1,2.04084]
[1727130885827,0.37702,2652.3,2652.1,2.50004]
[1727130886932,0.37702,2652.3,2652.1,0.83624]
[1727130887126,0.8465,2652.2,2652.1,0.83624]
[1727130889045,0.8465,2652.2,2652.1,0.4592]
[1727130889227,1.22352,2652.2,2652.1,0.4592]
[1727130889433,0.8465,2652.2,2652.1,0.83624]
[1727130889740,1.22352,2652.2,2652.1,0.4592]
[1727130890634,1.22352,2652.2,2652.1,0.83624]
[1727130891343,0.8465,2652.2,2652.1,0.83624]
[1727130891736,1.22352,2652.2,2652.1,0.4592]
[1727130891937,0.8465,2652.2,2651.8,0.4426]
[1727130892138,0.37705,2652.1,2651.9,0.82676]
[1727130892536,0.81975,2652.0,2651.9,0.4497]
[1727130893038,0.81975,2652.0,2651.9,0.82676]
[1727130894335,0.81975,2652.0,2651.9,0.4497]
[1727130896645,0.4427,2652.0,2651.9,0.82676]
[1727130898148,1.8305947,2652.2,2652.0,0.37704]
[1727130898344,2.2678947,2652.2,2651.9,2.04676]
[1727130898652,0.37705,2652.0,2651.9,2.04676]
[1727130899449,0.37705,2652.1,2651.9,2.04676]
[1727130900144,1.3611447,2652.1,2651.9,2.04676]
[1727130900350,0.37705,2652.0,2651.9,2.04676]
[1727130900537,0.37705,2652.0,2651.9,0.4497]
[1727130902340,1.3611447,2652.0,2651.9,0.4497]
[1727130902645,0.37705,2652.0,2651.9,0.4497]
[1727130902950,1.3611447,2652.0,2651.9,0.4497]
[1727130903244,0.37709,2651.7,2651.6,0.98860391]
[1727130903452,1.36291252,2651.8,2651.5,1.79852391]
[1727130903648,1.36291252,2651.8,2651.5,3.01852391]
[1727130903948,0.4193,2651.7,2651.5,3.01852391]
[1727130904353,1.40512252,2651.7,2651.5,3.01852391]
[1727130904652,1.40512252,2651.7,2651.5,0.4328]
[1727130904856,0.98582252,2651.6,2651.5,0.4328]
[1727130905144,1.78222252,2651.7,2651.5,0.4328]
[1727130905350,0.98582252,2651.6,2651.5,0.4328]
[1727130905552,0.37711,2651.6,2651.5,1.42140391]
[1727130905942,1.36293252,2651.6,2651.5,0.4328]
[1727130906157,1.78222252,2651.7,2651.5,0.4328]
[1727130906345,0.37711,2651.6,2651.5,0.4328]
[1727130907255,1.36293252,2651.6,2651.5,1.42140391]
[1727130908945,0.37711,2651.6,2651.5,1.42140391]
[1727130909146,1.36293252,2651.6,2651.5,1.42140391]
[1727130910751,0.98582252,2651.6,2651.5,1.79852391]
[1727130910948,0.98582252,2651.7,2651.5,6.81158829]
[1727130911143,1.36291252,2651.7,2651.6,2.20840512]
[1727130911957,0.98582252,2651.7,2651.6,2.20840512]
[1727130912657,1.36291252,2651.7,2651.6,2.20840512]
[1727130912861,1.36291252,2651.7,2651.5,0.98840512]
[1727130912862,0.37711,2651.6,2651.5,0.98840512]
[1727130913172,2.70493252,2651.6,2651.5,0.98840512]
[1727130913348,2.70493252,2651.6,2651.4,1.36553512]
[1727130913758,0.98582252,2651.6,2651.5,2.58552512]
[1727130915952,1.36293252,2651.6,2651.5,2.20840512]
[1727130916462,1.36293252,2651.6,2651.5,2.58552512]
[1727130918452,1.36293252,2651.6,2651.5,0.98840512]
[1727130919059,1.36293252,2651.6,2651.4,4.57333512]
[1727130919262,1.36293252,2651.6,2651.5,0.37712]
[1727130921175,0.98582252,2651.6,2651.5,0.37712]
[1727130922254,1.36293252,2651.6,2651.4,1.36552512]
[1727130922655,1.36293252,2651.6,2651.5,0.37712]
[1727130922857,1.36293252,2651.6,2651.4,0.98840512]
[1727130922858,0.37712,2651.5,2651.4,1.36553512]
[1727130923452,0.37712,2651.5,2651.4,0.98840512]
[1727130923658,1.27452,2651.5,2651.4,0.98840512]
[1727130923865,0.37714,2651.4,2651.3,0.98840512]
[1727130924162,0.37715,2651.3,2651.2,4.19620512]
[1727130924357,0.37715,2651.3,2651.2,3.2078]
[1727130924664,0.37715,2651.3,2651.2,4.19620512]
[1727130925164,0.37715,2651.3,2651.2,3.2078]
[1727130925655,0.37716,2651.2,2651.1,1.45390512]
[1727130925855,0.37716,2651.2,2651.1,2.57761374]
[1727130926058,0.37716,2651.2,2651.1,1.45390512]
[1727130926861,0.37716,2651.2,2651.1,0.98840512]
[1727130927067,0.37718,2651.1,2651.0,1.36559512]
[1727130927264,0.37718,2651.1,2650.9,2.0826]
[1727130927265,1.26788,2651.1,2650.9,3.07100512]
[1727130927559,1.26788,2651.1,2650.9,3.44820512]
[1727130928365,1.26788,2651.1,2650.8,0.98840512]
[1727130928366,0.37721,2650.9,2650.8,0.98840512]
[1727130928683,2.16302,2650.9,2650.5,0.98840512]
[1727130928863,0.37725,2650.6,2650.3,2.70258512]
[1727130929165,0.4307,2650.5,2650.3,1.71418]
[1727130931061,0.4307,2650.5,2650.4,1.59728]
[1727130931254,0.8699,2650.6,2650.4,1.22]
[1727130931459,0.4238,2650.7,2650.5,1.59726]
[1727130931665,0.80104,2650.7,2650.5,1.22]
[1727130935771,0.37725,2650.6,2650.5,1.22]
[1727130936184,0.37725,2650.6,2650.4,1.22]
[1727130936472,0.37725,2650.6,2650.4,1.59728]
[1727130941570,0.37726,2650.5,2650.4,0.37728]
[1727130942164,0.37726,2650.6,2650.4,0.37728]
[1727130946568,0.37724,2650.7,2650.3,2.5569]
[1727130946768,0.37726,2650.6,2650.4,0.37728]
[1727130948281,0.37726,2650.6,2650.3,2.5569]
[1727130948577,0.37726,2650.6,2650.4,0.37727]
[1727130950374,0.37726,2650.5,2650.3,2.93418]
[1727130950577,1.22,2650.7,2650.3,1.71418]
[1727130950778,0.37727,2650.5,2650.4,0.37728]
[1727130954473,0.37727,2650.5,2650.3,2.93419]
[1727130955481,0.37728,2650.4,2650.3,2.93419]
[1727130955781,0.37727,2650.5,2650.3,2.93419]
[1727130956278,0.4467,2650.6,2650.3,2.5569]
[1727130956279,0.37728,2650.4,2650.3,2.5569]
[1727130956480,0.37727,2650.5,2650.3,2.93419]
[1727130957579,0.37726,2650.5,2650.3,2.5569]
[1727130958176,0.82395,2650.6,2650.4,0.37727]
[1727130958779,0.37725,2650.6,2650.4,0.37727]
[1727130959177,0.37726,2650.6,2650.4,0.37728]
[1727130960080,2.59616,2650.8,2650.4,0.37728]
[1727130960282,0.37726,2650.6,2650.4,0.37728]
[1727130960479,0.37725,2650.6,2650.4,0.37728]
[1727130960678,2.59618,2650.8,2650.4,0.37728]
[1727130960881,0.37726,2650.6,2650.4,0.37728]
[1727130961783,0.37726,2650.5,2650.4,0.37728]
[1727130962086,0.37725,2650.6,2650.4,0.37728]
[1727130962287,1.6531,2650.8,2650.4,0.37727]
[1727130962483,0.37725,2650.6,2650.4,0.37727]
[1727130962985,1.6531,2650.8,2650.3,1.71418]
[1727130963181,0.37727,2650.5,2650.3,2.5569]
[1727130963387,0.37725,2650.6,2650.3,2.93418]
[1727130963589,0.37726,2650.6,2650.3,2.93418]
[1727130963884,0.37728,2650.4,2650.3,1.3369]
[1727130964778,0.37728,2650.4,2650.3,0.4474]
[1727130964979,1.25108,2650.4,2650.3,0.4474]
[1727130966692,0.37731,2650.2,2650.1,3.6508]
[1727130966892,0.37732,2650.1,2650.0,0.461]
[1727130967091,0.81162,2650.1,2650.0,0.461]
[1727130970191,0.37735,2649.9,2649.8,0.443]
[1727130970383,0.37735,2649.9,2649.8,0.886]
[1727130971382,0.37735,2649.9,2649.8,0.443]
[1727130972895,1.36222042,2649.9,2649.8,0.443]
[1727130973490,0.37739,2649.7,2649.5,6.58159121]
[1727130973700,0.37739,2649.7,2649.6,0.4583]
[1727130974389,0.37739,2649.7,2649.3,0.98840512]
[1727130974390,0.94349,2649.6,2649.3,0.98840512]
[1727130974691,0.94349,2649.6,2649.2,1.48178894]
[1727130974692,0.37743,2649.4,2649.2,0.4658]
[1727130974882,0.37743,2649.3,2649.2,0.4658]
[1727130975079,0.83043,2649.4,2649.2,0.4658]
[1727130975288,0.453,2649.4,2649.2,0.4658]
[1727130975493,1.87997392,2649.6,2649.3,1.22]
[1727130975686,2.33297392,2649.6,2649.4,0.872]
[1727130975889,1.3498,2649.6,2649.4,1.24942]
[1727130977092,0.98317392,2649.8,2649.5,0.37741]
[1727130977290,0.98317392,2649.9,2649.5,1.5974]
[1727130977485,0.4644,2649.8,2649.6,0.4252]
[1727130977682,0.37738,2649.7,2649.6,0.4252]
[1727130977989,0.3774,2649.6,2649.4,0.872]
[1727130978188,0.4268,2649.6,2649.4,1.2972]
[1727130978384,0.4644,2649.5,2649.4,1.2972]
[1727130979196,5.83621,2649.5,2649.4,0.4279]
[1727130979393,0.37743,2649.3,2649.1,0.8792]
[1727130980089,0.37743,2649.4,2649.1,0.8792]
[1727130980489,0.37744,2649.3,2649.1,0.8792]
[1727130982997,0.37745,2649.2,2649.1,0.8792]
[1727130983500,0.37745,2649.2,2649.1,0.4252]
[1727130986800,0.37746,2649.1,2649.0,1.22]
[1727130987002,1.25056,2649.1,2649.0,1.22]
[1727130987199,0.8731,2649.1,2649.0,1.22]
[1727130987406,1.25056,2649.1,2649.0,1.22]
[1727130989236,0.8731,2649.1,2649.0,1.22]
[1727130989609,1.70846,2649.1,2649.0,1.22]
[1727130990025,0.37748,2649.0,2648.9,0.4265]
[1727130990219,1.70848,2649.1,2648.9,0.4265]
[1727130990514,0.37748,2649.0,2648.9,0.4265]
[1727130991315,1.59748,2649.0,2648.9,0.4265]
[1727130991511,1.22,2649.0,2648.6,0.9006]
[1727130991712,0.37752,2648.7,2648.6,0.9006]
[1727130992322,0.455,2648.7,2648.6,0.9006]
[1727130992518,0.455,2648.7,2648.6,2.49813]
[1727130993918,0.3775,2648.9,2648.6,2.49813]
[1727130994118,0.8325,2648.9,2648.6,2.1206]
[1727130994319,0.8325,2648.9,2648.7,0.37751]
[1727130994815,0.455,2648.9,2648.7,0.37751]
[1727130995922,0.455,2648.9,2648.8,0.37751]
[1727130996318,0.455,2648.9,2648.7,0.37751]
[1727130997618,0.455,2648.9,2648.8,0.4216]
[1727130998918,0.455,2648.9,2648.8,0.79911]
[1727131000525,3.2078,2649.2,2649.1,0.37746]
[1727131000720,0.37744,2649.3,2649.1,0.37746]
[1727131000919,0.37744,2649.3,2649.0,0.8766]
[1727131001119,0.37744,2649.3,2649.1,0.37746]
[1727131001924,2.48353,2649.4,2649.2,0.37745]
[1727131003822,1.26353,2649.4,2649.2,0.37745]
[1727131004024,0.8861,2649.4,2649.3,0.37743]
[1727131004721,6.2378,2649.7,2649.1,0.4505]
[1727131004722,4.80519,2649.7,2649.1,1.6705]
[1727131004925,5.69169,2649.7,2649.4,0.37741]
[1727131005230,5.69169,2649.7,2649.5,0.4326]
[1727131005630,3.7744,2649.6,2649.5,0.4326]
[1727131006729,4.15179,2649.6,2649.5,0.4326]
[1727131006930,5.3718,2649.6,2649.0,4.0844]
[1727131007127,1.5974,2649.6,2649.2,0.4326]
[1727131007334,1.5974,2649.6,2649.3,0.37743]
[1727131009432,1.5974,2649.6,2649.3,0.37742]
[1727131010827,1.5974,2649.6,2649.4,0.37742]
[1727131011139,2.58057392,2649.6,2649.4,0.37742]
[1727131014237,0.98317392,2649.5,2649.4,0.37742]
[1727131014835,4.75757392,2649.5,2649.2,0.4326]
[1727131015034,1.22,2649.3,2649.2,0.4326]
[1727131015335,0.8781,2649.4,2649.0,0.8766]
[1727131015537,1.25553,2649.4,2649.2,0.37744]
[1727131015838,0.43,2649.3,2649.2,0.37744]
[1727131016931,0.80743,2649.3,2649.1,0.83425]
[1727131017132,0.80743,2649.3,2649.1,0.4568]
[1727131017632,2.02743,2649.3,2649.1,0.4568]
[1727131017839,2.02743,2649.3,2649.1,0.37746]
[1727131018332,2.02743,2649.3,2648.9,4.99318512]
[1727131018333,0.37747,2649.1,2648.9,4.99318512]
[1727131018532,0.454,2649.0,2648.9,4.99318512]
[1727131018734,0.83148,2649.0,2648.9,1.40790512]
[1727131019037,0.83148,2649.0,2648.9,0.4195]
[1727131019244,1.28418,2649.0,2648.9,0.4195]
[1727131020243,0.9067,2649.0,2648.9,0.79699]
[1727131020439,0.9067,2649.0,2648.9,1.78539512]
[1727131020638,0.9067,2649.0,2648.9,0.79699]
[1727131023945,1.28418,2649.0,2648.9,0.4195]
[1727131024144,2.26735392,2649.0,2648.9,0.79699]
[1727131024943,2.26735392,2649.0,2648.9,0.4195]
[1727131025145,2.26735392,2649.0,2648.9,0.79699]
[1727131027341,1.88987392,2649.0,2648.9,0.79699]
[1727131027545,0.98317392,2649.0,2648.9,0.79699]
[1727131028146,0.98317392,2649.1,2648.9,1.78539512]
[1727131028446,0.98317392,2649.1,2649.0,0.37748]
[1727131028640,0.98317392,2649.1,2649.0,1.59748]
[1727131028846,0.98317392,2649.2,2649.1,0.37746]
[1727131029147,0.98317392,2649.2,2649.1,1.26626]
[1727131029648,0.37747,2649.1,2648.9,1.40790512]
[1727131029842,1.81879876,2649.1,2648.9,1.78538512]
[1727131030147,1.81879876,2649.1,2649.0,0.37748]
[1727131030445,1.81879876,2649.1,2648.9,1.40790512]
[1727131030446,0.37748,2649.0,2648.9,1.78539512]
[1727131030645,1.59748,2649.0,2648.9,0.98840512]
[1727131030844,0.37749,2648.9,2648.8,2.69880512]
[1727131031044,1.36076919,2648.9,2648.8,1.7104]
[1727131031651,0.98327919,2648.9,2648.8,1.7104]
[1727131031845,0.98327919,2649.0,2648.9,0.37749]
[1727131033846,1.85622378,2649.0,2648.8,1.3329]
[1727131034046,1.360725,2649.0,2648.8,2.32130512]
[1727131034749,1.360725,2649.0,2648.9,0.37749]
[1727131034950,0.983235,2649.0,2648.9,0.37749]
[1727131035248,1.73296,2649.1,2649.0,0.37748]
[1727131035752,3.21169378,2649.1,2649.0,0.37748]
[1727131036240,1.73296,2649.1,2649.0,0.37748]
[1727131036438,1.73296,2649.1,2648.8,2.32130512]
[1727131036641,0.98321112,2649.0,2648.9,0.37748]
[1727131037151,2.71617112,2649.1,2649.0,0.37748]
[1727131037459,1.73296,2649.1,2648.8,2.32130512]
[1727131037748,0.98312875,2649.0,2648.9,0.37749]
[1727131038651,0.98312875,2649.1,2649.0,0.37748]
[1727131038951,0.9832026,2649.2,2649.0,0.98840512]
[1727131039149,0.37744,2649.3,2649.2,0.37745]
[1727131039351,1.85231083,2649.3,2649.2,0.37745]
[1727131039554,0.37744,2649.3,2649.2,0.37745]
[1727131039741,1.85230361,2649.3,2649.2,0.37745]
[1727131040352,1.47486361,2649.3,2649.2,5.09548]
[1727131040542,2.45013929,2649.6,2649.5,0.37741]
[1727131040543,0.98345019,2649.6,2649.5,0.37741]
[1727131040744,0.98345019,2649.7,2649.6,0.37739]
[1727131041139,0.98345019,2649.7,2649.6,0.82509]
[1727131041344,1.36083019,2649.7,2649.6,0.4477]
[1727131041546,0.81508,2649.7,2649.6,0.4477]
[1727131041853,2.28994361,2649.7,2649.6,0.4477]
[1727131042246,3.50994361,2649.7,2649.6,0.4477]
[1727131045745,2.69486361,2649.7,2649.6,0.4477]
[1727131045948,1.47486361,2649.8,2649.6,0.4477]
[1727131046153,0.98305212,2649.7,2649.6,0.82509]